[Event "Titled Tuesday Blitz July 4 Early 2023"]
[White "Tologon tegin, Semetei"]
[Black "Schut, Han"]
[WhiteFideId "13800574"]
[BlackFideId "1005561"]
[WhiteElo "2559"]
[BlackElo "2309"]
[Result "1-0"]
[Round "6"]
[TimeControl "180+2"]
[Date "2023.07.04"]
[WhiteClock "0:00:55"]
[BlackClock "0:00:08"]
[Board "95"]

1. b3 {[%clk 0:02:48]}  e5 {[%clk 0:02:58]} 2. Bb2 {[%clk 0:02:48]}  Nc6 {[%clk 0:02:59]} 3. e3 {[%clk 0:02:48]}  Bd6 {[%clk 0:02:59]} 4. c4 {[%clk 0:02:47]}  Qe7 {[%clk 0:02:58]} 5. Nc3 {[%clk 0:02:46]}  f5 {[%clk 0:02:49]} 6. Nf3 {[%clk 0:02:40]}  Nf6 {[%clk 0:02:48]} 7. d4 {[%clk 0:02:39]}  exd4 {[%clk 0:02:43]} 8. Nxd4 {[%clk 0:02:39]}  Nxd4 {[%clk 0:02:43]} 9. Qxd4 {[%clk 0:02:38]}  Be5 {[%clk 0:02:37]} 10. Qd2 {[%clk 0:02:35]}  d6 {[%clk 0:02:15]} 11. Be2 {[%clk 0:02:34]}  O-O {[%clk 0:02:07]} 12. O-O {[%clk 0:02:32]}  Bd7 {[%clk 0:02:07]} 13. Bf3 {[%clk 0:02:23]}  c6 {[%clk 0:02:05]} 14. Rad1 {[%clk 0:02:20]}  Rad8 {[%clk 0:02:03]} 15. Rfe1 {[%clk 0:02:18]}  Be6 {[%clk 0:01:56]} 16. g3 {[%clk 0:02:10]}  Qf7 {[%clk 0:01:50]} 17. Ne2 {[%clk 0:02:02]}  g5 {[%clk 0:01:38]} 18. Bxe5 {[%clk 0:02:00]}  dxe5 {[%clk 0:01:39]} 19. Qxd8 {[%clk 0:02:00]}  Rxd8 {[%clk 0:01:40]} 20. Rxd8+ {[%clk 0:02:00]}  Kg7 {[%clk 0:01:40]} 21. Red1 {[%clk 0:01:56]}  e4 {[%clk 0:01:32]} 22. Bg2 {[%clk 0:01:56]}  Qh5 {[%clk 0:01:29]} 23. R1d2 {[%clk 0:01:53]}  Ng4 {[%clk 0:01:24]} 24. h3 {[%clk 0:01:53]}  Ne5 {[%clk 0:01:24]} 25. Nd4 {[%clk 0:01:48]}  Bd7 {[%clk 0:00:42]} 26. Rxd7+ {[%clk 0:01:32]}  Nxd7 {[%clk 0:00:39]} 27. Nxf5+ {[%clk 0:01:32]}  Kf6 {[%clk 0:00:40]} 28. Rxd7 {[%clk 0:01:32]}  Qe2 {[%clk 0:00:36]} 29. Bxe4 {[%clk 0:01:27]}  Qxa2 {[%clk 0:00:30]} 30. Rd3 {[%clk 0:01:17]}  h5 {[%clk 0:00:26]} 31. g4 {[%clk 0:01:15]}  h4 {[%clk 0:00:23]} 32. Kg2 {[%clk 0:01:15]}  b5 {[%clk 0:00:20]} 33. cxb5 {[%clk 0:01:15]}  cxb5 {[%clk 0:00:21]} 34. Nd6 {[%clk 0:01:13]}  a6 {[%clk 0:00:18]} 35. Bf5 {[%clk 0:01:12]}  Qa5 {[%clk 0:00:15]} 36. Ne4+ {[%clk 0:01:11]}  Ke7 {[%clk 0:00:15]} 37. Nxg5 {[%clk 0:01:11]}  Qb4 {[%clk 0:00:14]} 38. Nf3 {[%clk 0:01:10]}  a5 {[%clk 0:00:14]} 39. Nxh4 {[%clk 0:01:09]}  a4 {[%clk 0:00:15]} 40. bxa4 {[%clk 0:01:09]}  bxa4 {[%clk 0:00:16]} 41. Ng6+ {[%clk 0:01:09]}  Ke8 {[%clk 0:00:16]} 42. Rd4 {[%clk 0:00:59]}  Qb7+ {[%clk 0:00:10]} 43. Be4 {[%clk 0:00:57]}  Qb3 {[%clk 0:00:11]} 44. Bd5 {[%clk 0:00:56]}  Qb5 {[%clk 0:00:09]} 45. Ne5 {[%clk 0:00:54]}  a3 {[%clk 0:00:08]} 46. Bc6+ {[%clk 0:00:54]}  Qxc6+ {[%clk 0:00:09]} 47. Nxc6 {[%clk 0:00:55]}  a2 {[%clk 0:00:08]} 48. Ra4 {[%clk 0:00:55]} 1-0


[Site "https://www.chess.com"]

[Event "Titled Tuesday Blitz July 4 Early 2023"]
[White "Estrada Nieto, Julian"]
[Black "Samarth J Rao"]
[WhiteFideId "5101018"]
[BlackFideId "46652370"]
[WhiteElo "2559"]
[BlackElo "2265"]
[Result "1-0"]
[Round "6"]
[TimeControl "180+2"]
[Date "2023.07.04"]
[WhiteClock "0:01:30"]
[BlackClock "0:00:57"]
[Board "96"]

1. e4 {[%clk 0:03:00]}  c5 {[%clk 0:02:56]} 2. Nf3 {[%clk 0:03:00]}  e6 {[%clk 0:02:18]} 3. c3 {[%clk 0:03:00]}  d5 {[%clk 0:02:18]} 4. exd5 {[%clk 0:02:59]}  Qxd5 {[%clk 0:02:19]} 5. d4 {[%clk 0:03:00]}  Nf6 {[%clk 0:02:18]} 6. Na3 {[%clk 0:03:00]}  Nc6 {[%clk 0:02:16]} 7. Be3 {[%clk 0:02:57]}  cxd4 {[%clk 0:02:15]} 8. Nb5 {[%clk 0:02:57]}  Qd8 {[%clk 0:02:16]} 9. Nbxd4 {[%clk 0:02:57]}  Bd7 {[%clk 0:02:15]} 10. Bd3 {[%clk 0:02:54]}  Be7 {[%clk 0:02:12]} 11. O-O {[%clk 0:02:53]}  O-O {[%clk 0:02:11]} 12. Qe2 {[%clk 0:02:48]}  a6 {[%clk 0:01:46]} 13. Rad1 {[%clk 0:02:35]}  Qc7 {[%clk 0:01:46]} 14. Nxc6 {[%clk 0:02:21]}  Bxc6 {[%clk 0:01:46]} 15. Bd4 {[%clk 0:02:20]}  Rfd8 {[%clk 0:01:41]} 16. Rfe1 {[%clk 0:02:18]}  Rd7 {[%clk 0:01:31]} 17. Ne5 {[%clk 0:02:16]}  Rd5 {[%clk 0:01:24]} 18. Bc4 {[%clk 0:02:03]}  Rdd8 {[%clk 0:01:21]} 19. Nxf7 {[%clk 0:01:59]}  Kxf7 {[%clk 0:01:20]} 20. Qxe6+ {[%clk 0:01:57]}  Kg6 {[%clk 0:01:14]} 21. Qf7+ {[%clk 0:01:43]}  Kh6 {[%clk 0:01:13]} 22. Rxe7 {[%clk 0:01:40]}  Qxe7 {[%clk 0:01:05]} 23. Qxe7 {[%clk 0:01:40]}  Rd7 {[%clk 0:01:05]} 24. Be3+ {[%clk 0:01:31]}  g5 {[%clk 0:00:57]} 25. Qxf6+ {[%clk 0:01:30]} 1-0


[Site "https://www.chess.com"]

[Event "Titled Tuesday Blitz July 4 Early 2023"]
[White "Dvirnyy, Danyyil"]
[Black "Brunner, Nicolas"]
[WhiteFideId "817570"]
[BlackFideId "620246"]
[WhiteElo "2749"]
[BlackElo "2533"]
[Result "1-0"]
[Round "6"]
[TimeControl "180+2"]
[Date "2023.07.04"]
[WhiteClock "0:01:34"]
[BlackClock "0:00:11"]
[Board "98"]

1. e4 {[%clk 0:02:56]}  e5 {[%clk 0:02:59]} 2. Nf3 {[%clk 0:02:55]}  Nf6 {[%clk 0:03:00]} 3. Nc3 {[%clk 0:02:55]}  Nc6 {[%clk 0:02:59]} 4. g3 {[%clk 0:02:55]}  d5 {[%clk 0:02:58]} 5. exd5 {[%clk 0:02:55]}  Nxd5 {[%clk 0:02:59]} 6. Bg2 {[%clk 0:02:54]}  Nxc3 {[%clk 0:02:58]} 7. bxc3 {[%clk 0:02:54]}  Bc5 {[%clk 0:02:58]} 8. O-O {[%clk 0:02:53]}  O-O {[%clk 0:02:58]} 9. d3 {[%clk 0:02:53]}  Qf6 {[%clk 0:02:56]} 10. Rb1 {[%clk 0:02:51]}  Bb6 {[%clk 0:02:55]} 11. a4 {[%clk 0:02:48]}  Bg4 {[%clk 0:02:52]} 12. h3 {[%clk 0:02:48]}  Bh5 {[%clk 0:02:52]} 13. g4 {[%clk 0:02:48]}  Bg6 {[%clk 0:02:52]} 14. Ng5 {[%clk 0:02:49]}  h6 {[%clk 0:02:43]} 15. Ne4 {[%clk 0:02:49]}  Qh4 {[%clk 0:02:41]} 16. Ng3 {[%clk 0:02:36]}  f5 {[%clk 0:02:12]} 17. gxf5 {[%clk 0:02:34]}  Bxf5 {[%clk 0:02:12]} 18. Qh5 {[%clk 0:02:30]}  Qxh5 {[%clk 0:01:37]} 19. Nxh5 {[%clk 0:02:31]}  Rae8 {[%clk 0:01:37]} 20. Ng3 {[%clk 0:02:27]}  Bc8 {[%clk 0:01:32]} 21. Be3 {[%clk 0:02:27]}  Ne7 {[%clk 0:01:18]} 22. Rb5 {[%clk 0:02:22]}  Ng6 {[%clk 0:01:05]} 23. a5 {[%clk 0:02:18]}  Bxe3 {[%clk 0:01:05]} 24. fxe3 {[%clk 0:02:19]}  c6 {[%clk 0:01:05]} 25. Rb4 {[%clk 0:02:17]}  Rxf1+ {[%clk 0:01:03]} 26. Kxf1 {[%clk 0:02:16]}  Rf8+ {[%clk 0:01:03]} 27. Kg1 {[%clk 0:02:16]}  Ne7 {[%clk 0:00:48]} 28. c4 {[%clk 0:02:04]}  Kf7 {[%clk 0:00:47]} 29. c5 {[%clk 0:02:02]}  Ke6 {[%clk 0:00:47]} 30. d4 {[%clk 0:01:51]}  Nd5 {[%clk 0:00:28]} 31. Rb3 {[%clk 0:01:49]}  exd4 {[%clk 0:00:26]} 32. exd4 {[%clk 0:01:50]}  Rf4 {[%clk 0:00:23]} 33. c4 {[%clk 0:01:48]}  Nf6 {[%clk 0:00:20]} 34. Re3+ {[%clk 0:01:47]}  Kf7 {[%clk 0:00:21]} 35. Ne2 {[%clk 0:01:47]}  Rh4 {[%clk 0:00:20]} 36. a6 {[%clk 0:01:46]}  bxa6 {[%clk 0:00:18]} 37. Bxc6 {[%clk 0:01:44]}  Bxh3 {[%clk 0:00:18]} 38. Bb7 {[%clk 0:01:43]}  Bg4 {[%clk 0:00:16]} 39. c6 {[%clk 0:01:35]}  Bxe2 {[%clk 0:00:15]} 40. Rxe2 {[%clk 0:01:36]}  Rxd4 {[%clk 0:00:16]} 41. c7 {[%clk 0:01:36]}  Rxc4 {[%clk 0:00:16]} 42. c8=Q {[%clk 0:01:34]}  Rxc8 {[%clk 0:00:16]} 43. Bxc8 {[%clk 0:01:34]}  a5 {[%clk 0:00:17]} 44. Ra2 {[%clk 0:01:34]}  g5 {[%clk 0:00:14]} 45. Rxa5 {[%clk 0:01:34]}  Kg6 {[%clk 0:00:15]} 46. Rxa7 {[%clk 0:01:34]}  h5 {[%clk 0:00:15]} 47. Ra5 {[%clk 0:01:34]}  g4 {[%clk 0:00:15]} 48. Kf2 {[%clk 0:01:34]}  Ng8 {[%clk 0:00:14]} 49. Kg3 {[%clk 0:01:33]}  Ne7 {[%clk 0:00:14]} 50. Be6 {[%clk 0:01:33]}  Kf6 {[%clk 0:00:14]} 51. Bd7 {[%clk 0:01:33]}  Kg6 {[%clk 0:00:11]} 52. Be8+ {[%clk 0:01:34]} 1-0


[Site "https://www.chess.com"]

[Event "Titled Tuesday Blitz July 4 Early 2023"]
[White "Vyatkin, Dmitry"]
[Black "Williams, Simon K"]
[WhiteFideId "4171900"]
[BlackFideId "404454"]
[WhiteElo "2530"]
[BlackElo "2682"]
[Result "0-1"]
[Round "6"]
[TimeControl "180+2"]
[Date "2023.07.04"]
[WhiteClock "0:00:00"]
[BlackClock "0:00:03"]
[Board "100"]

1. d4 {[%clk 0:02:59]}  e6 {[%clk 0:02:57]} 2. c4 {[%clk 0:02:57]}  b6 {[%clk 0:02:40]} 3. Nf3 {[%clk 0:02:51]}  Bb7 {[%clk 0:02:35]} 4. g3 {[%clk 0:02:51]}  Bb4+ {[%clk 0:02:30]} 5. Bd2 {[%clk 0:02:51]}  Bxd2+ {[%clk 0:02:29]} 6. Nbxd2 {[%clk 0:02:51]}  d6 {[%clk 0:02:29]} 7. Bg2 {[%clk 0:02:50]}  Nd7 {[%clk 0:02:27]} 8. O-O {[%clk 0:02:50]}  Ngf6 {[%clk 0:02:26]} 9. Qc2 {[%clk 0:02:49]}  O-O {[%clk 0:02:22]} 10. e4 {[%clk 0:02:45]}  e5 {[%clk 0:02:19]} 11. d5 {[%clk 0:02:45]}  c6 {[%clk 0:02:18]} 12. b4 {[%clk 0:02:36]}  cxd5 {[%clk 0:02:13]} 13. cxd5 {[%clk 0:02:36]}  Rc8 {[%clk 0:02:05]} 14. Qb3 {[%clk 0:02:35]}  b5 {[%clk 0:01:59]} 15. Rfc1 {[%clk 0:02:34]}  Nb6 {[%clk 0:01:56]} 16. Bh3 {[%clk 0:02:28]}  Rxc1+ {[%clk 0:01:54]} 17. Rxc1 {[%clk 0:02:28]}  Nfd7 {[%clk 0:01:38]} 18. Qc3 {[%clk 0:02:15]}  Qa8 {[%clk 0:01:25]} 19. Qd3 {[%clk 0:02:04]}  Rc8 {[%clk 0:01:10]} 20. Rxc8+ {[%clk 0:01:51]}  Qxc8 {[%clk 0:01:09]} 21. Qxb5 {[%clk 0:01:49]}  Qc1+ {[%clk 0:00:51]} 22. Qf1 {[%clk 0:01:41]}  Qc3 {[%clk 0:00:43]} 23. Bxd7 {[%clk 0:01:27]}  Nxd7 {[%clk 0:00:43]} 24. Qb5 {[%clk 0:01:27]}  Qc7 {[%clk 0:00:30]} 25. Qc4 {[%clk 0:01:26]}  Qb6 {[%clk 0:00:27]} 26. a4 {[%clk 0:01:26]}  a5 {[%clk 0:00:22]} 27. b5 {[%clk 0:01:26]}  g6 {[%clk 0:00:18]} 28. Nb3 {[%clk 0:01:08]}  Nf6 {[%clk 0:00:14]} 29. h3 {[%clk 0:00:57]}  Kg7 {[%clk 0:00:14]} 30. Nfd2 {[%clk 0:00:52]}  h5 {[%clk 0:00:13]} 31. Qc3 {[%clk 0:00:47]}  Qd8 {[%clk 0:00:12]} 32. Nxa5 {[%clk 0:00:44]}  Bc8 {[%clk 0:00:12]} 33. Nc6 {[%clk 0:00:35]}  Qd7 {[%clk 0:00:10]} 34. h4 {[%clk 0:00:29]}  Qh3 {[%clk 0:00:10]} 35. Qf3 {[%clk 0:00:26]}  Qd7 {[%clk 0:00:05]} 36. a5 {[%clk 0:00:25]}  Qb7 {[%clk 0:00:05]} 37. Qd3 {[%clk 0:00:24]}  Ng4 {[%clk 0:00:04]} 38. b6 {[%clk 0:00:20]}  Qd7 {[%clk 0:00:02]} 39. a6 {[%clk 0:00:18]}  f5 {[%clk 0:00:02]} 40. Qb1 {[%clk 0:00:12]}  Bxa6 {[%clk 0:00:01]} 41. Na5 {[%clk 0:00:05]}  Bb7 {[%clk 0:00:01]} 42. Nxb7 {[%clk 0:00:04]}  Qxb7 {[%clk 0:00:02]} 43. Qb5 {[%clk 0:00:05]}  f4 {[%clk 0:00:02]} 44. Qc6 {[%clk 0:00:05]}  Qa6 {[%clk 0:00:03]} 45. b7 {[%clk 0:00:04]}  Qe2 {[%clk 0:00:03]} 46. Qb6 {[%clk 0:00:01]}  Qe1+ {[%clk 0:00:03]} 47. Kg2 {[%clk 0:00:00]}  Qxd2 {[%clk 0:00:03]} 0-1


[Site "https://www.chess.com"]

[Event "Titled Tuesday Blitz July 4 Early 2023"]
[White "chess123456s"]
[Black "Flynn, Jacob"]
[BlackFideId "2509393"]
[WhiteElo "2626"]
[BlackElo "2467"]
[Result "1-0"]
[Round "6"]
[TimeControl "180+2"]
[Date "2023.07.04"]
[WhiteClock "0:01:29"]
[BlackClock "0:00:32"]
[Board "104"]

1. d4 {[%clk 0:03:00]}  Nf6 {[%clk 0:02:59]} 2. Nf3 {[%clk 0:03:00]}  d5 {[%clk 0:02:59]} 3. c4 {[%clk 0:03:00]}  e6 {[%clk 0:02:58]} 4. g3 {[%clk 0:03:00]}  dxc4 {[%clk 0:02:59]} 5. Bg2 {[%clk 0:03:00]}  c5 {[%clk 0:02:59]} 6. O-O {[%clk 0:02:59]}  Nc6 {[%clk 0:02:59]} 7. dxc5 {[%clk 0:03:00]}  Qxd1 {[%clk 0:02:59]} 8. Rxd1 {[%clk 0:03:01]}  Bxc5 {[%clk 0:02:59]} 9. Nbd2 {[%clk 0:03:01]}  c3 {[%clk 0:03:00]} 10. bxc3 {[%clk 0:03:02]}  O-O {[%clk 0:03:00]} 11. Nb3 {[%clk 0:03:03]}  Be7 {[%clk 0:03:00]} 12. c4 {[%clk 0:03:03]}  Bd7 {[%clk 0:02:54]} 13. Bg5 {[%clk 0:03:01]}  Rfd8 {[%clk 0:02:53]} 14. Nbd4 {[%clk 0:03:00]}  Rac8 {[%clk 0:02:49]} 15. Nb5 {[%clk 0:02:57]}  Be8 {[%clk 0:02:46]} 16. Bf4 {[%clk 0:02:06]}  Na5 {[%clk 0:01:51]} 17. Rxd8 {[%clk 0:01:58]}  Rxd8 {[%clk 0:01:51]} 18. Bc7 {[%clk 0:01:58]}  Nxc4 {[%clk 0:01:49]} 19. Bxd8 {[%clk 0:01:56]}  Bxd8 {[%clk 0:01:50]} 20. Nxa7 {[%clk 0:01:48]}  Bb6 {[%clk 0:01:25]} 21. Rc1 {[%clk 0:01:47]}  Bxa7 {[%clk 0:01:11]} 22. Rxc4 {[%clk 0:01:45]}  Bb8 {[%clk 0:00:49]} 23. Rc8 {[%clk 0:01:41]}  Bd6 {[%clk 0:00:50]} 24. Nd4 {[%clk 0:01:40]}  Kf8 {[%clk 0:00:42]} 25. Bxb7 {[%clk 0:01:38]}  Ke7 {[%clk 0:00:42]} 26. Bc6 {[%clk 0:01:29]}  Be5 {[%clk 0:00:32]} 1-0


[Site "https://www.chess.com"]

[Event "Titled Tuesday Blitz July 4 Early 2023"]
[White "Fiedorek, Michal"]
[Black "Ganiev, Roman"]
[WhiteFideId "1199528"]
[BlackFideId "4131452"]
[WhiteElo "2461"]
[BlackElo "2612"]
[Result "1-0"]
[Round "6"]
[TimeControl "180+2"]
[Date "2023.07.04"]
[WhiteClock "0:00:37"]
[BlackClock "0:00:21"]
[Board "105"]

1. e4 {[%clk 0:03:00]}  c5 {[%clk 0:02:59]} 2. Nf3 {[%clk 0:03:00]}  d6 {[%clk 0:02:59]} 3. Bb5+ {[%clk 0:02:59]}  Bd7 {[%clk 0:02:59]} 4. Bxd7+ {[%clk 0:02:58]}  Qxd7 {[%clk 0:02:59]} 5. c4 {[%clk 0:02:59]}  Nf6 {[%clk 0:02:59]} 6. O-O {[%clk 0:02:59]}  Nxe4 {[%clk 0:02:57]} 7. d4 {[%clk 0:02:59]}  cxd4 {[%clk 0:02:55]} 8. Qxd4 {[%clk 0:02:57]}  Nf6 {[%clk 0:02:55]} 9. Nc3 {[%clk 0:02:57]}  Nc6 {[%clk 0:02:55]} 10. Qd3 {[%clk 0:02:55]}  e6 {[%clk 0:02:52]} 11. Nb5 {[%clk 0:02:48]}  a6 {[%clk 0:02:48]} 12. Nbd4 {[%clk 0:02:48]}  Be7 {[%clk 0:02:47]} 13. Bg5 {[%clk 0:02:48]}  O-O {[%clk 0:02:46]} 14. Rad1 {[%clk 0:02:49]}  Rac8 {[%clk 0:02:43]} 15. b3 {[%clk 0:02:47]}  Rfd8 {[%clk 0:02:41]} 16. Rfe1 {[%clk 0:02:46]}  h6 {[%clk 0:02:41]} 17. Bh4 {[%clk 0:02:45]}  d5 {[%clk 0:02:35]} 18. Nxc6 {[%clk 0:02:36]}  Qxc6 {[%clk 0:02:32]} 19. Ne5 {[%clk 0:02:33]}  Qc7 {[%clk 0:02:32]} 20. Qf3 {[%clk 0:02:03]}  dxc4 {[%clk 0:02:27]} 21. Nxc4 {[%clk 0:02:03]}  Rxd1 {[%clk 0:02:12]} 22. Rxd1 {[%clk 0:02:03]}  Rd8 {[%clk 0:02:12]} 23. Bg3 {[%clk 0:02:03]}  Rxd1+ {[%clk 0:01:59]} 24. Qxd1 {[%clk 0:02:04]}  Qd7 {[%clk 0:01:48]} 25. Qe2 {[%clk 0:01:49]}  Nd5 {[%clk 0:01:46]} 26. h3 {[%clk 0:01:47]}  Bf6 {[%clk 0:01:42]} 27. Qf3 {[%clk 0:01:42]}  b5 {[%clk 0:01:33]} 28. Nd6 {[%clk 0:01:42]}  Nc3 {[%clk 0:01:04]} 29. Qa8+ {[%clk 0:01:32]}  Kh7 {[%clk 0:01:03]} 30. Kh2 {[%clk 0:01:23]}  Ne2 {[%clk 0:00:40]} 31. Qe4+ {[%clk 0:01:21]}  g6 {[%clk 0:00:32]} 32. Qxe2 {[%clk 0:01:20]}  e5 {[%clk 0:00:30]} 33. Qd2 {[%clk 0:00:43]}  Qe6 {[%clk 0:00:29]} 34. Ne4 {[%clk 0:00:41]}  Bg7 {[%clk 0:00:29]} 35. Qd6 {[%clk 0:00:39]}  Qf5 {[%clk 0:00:29]} 36. Nc5 {[%clk 0:00:39]}  h5 {[%clk 0:00:27]} 37. h4 {[%clk 0:00:39]}  e4 {[%clk 0:00:17]} 38. Nxa6 {[%clk 0:00:38]}  Qg4 {[%clk 0:00:08]} 39. Qf4 {[%clk 0:00:31]}  Qe6 {[%clk 0:00:08]} 40. Nc5 {[%clk 0:00:30]}  Qd5 {[%clk 0:00:06]} 41. Nxe4 {[%clk 0:00:29]}  Kh8 {[%clk 0:00:06]} 42. Ng5 {[%clk 0:00:29]}  f6 {[%clk 0:00:06]} 43. Qb8+ {[%clk 0:00:27]}  Qg8 {[%clk 0:00:06]} 44. Nf7+ {[%clk 0:00:20]}  Kh7 {[%clk 0:00:05]} 45. Qxg8+ {[%clk 0:00:21]}  Kxg8 {[%clk 0:00:05]} 46. Nd6 {[%clk 0:00:22]}  Bf8 {[%clk 0:00:05]} 47. Nxb5 {[%clk 0:00:22]}  Kf7 {[%clk 0:00:05]} 48. a4 {[%clk 0:00:22]}  Ke6 {[%clk 0:00:06]} 49. a5 {[%clk 0:00:22]}  Bc5 {[%clk 0:00:03]} 50. a6 {[%clk 0:00:23]}  Kd5 {[%clk 0:00:04]} 51. a7 {[%clk 0:00:23]}  Bxa7 {[%clk 0:00:04]} 52. Nxa7 {[%clk 0:00:24]}  g5 {[%clk 0:00:05]} 53. hxg5 {[%clk 0:00:24]}  fxg5 {[%clk 0:00:06]} 54. b4 {[%clk 0:00:24]}  Kc4 {[%clk 0:00:03]} 55. b5 {[%clk 0:00:25]}  Kc5 {[%clk 0:00:04]} 56. f3 {[%clk 0:00:24]}  Kb6 {[%clk 0:00:03]} 57. Bf2+ {[%clk 0:00:25]}  Kb7 {[%clk 0:00:04]} 58. g4 {[%clk 0:00:25]}  hxg4 {[%clk 0:00:03]} 59. fxg4 {[%clk 0:00:26]}  Kb8 {[%clk 0:00:03]} 60. Kg3 {[%clk 0:00:26]}  Kb7 {[%clk 0:00:04]} 61. Kf3 {[%clk 0:00:27]}  Kb8 {[%clk 0:00:05]} 62. Ke4 {[%clk 0:00:27]}  Kb7 {[%clk 0:00:06]} 63. Kf5 {[%clk 0:00:28]}  Kb8 {[%clk 0:00:07]} 64. Kxg5 {[%clk 0:00:29]}  Kb7 {[%clk 0:00:08]} 65. Kf6 {[%clk 0:00:30]}  Ka8 {[%clk 0:00:09]} 66. g5 {[%clk 0:00:31]}  Kb8 {[%clk 0:00:09]} 67. g6 {[%clk 0:00:31]}  Kb7 {[%clk 0:00:10]} 68. g7 {[%clk 0:00:32]}  Ka8 {[%clk 0:00:11]} 69. g8=Q+ {[%clk 0:00:31]}  Kb7 {[%clk 0:00:12]} 70. Qf7+ {[%clk 0:00:31]}  Kb8 {[%clk 0:00:12]} 71. Bg3+ {[%clk 0:00:31]}  Ka8 {[%clk 0:00:12]} 72. Qe8+ {[%clk 0:00:31]}  Kb7 {[%clk 0:00:13]} 73. Qd7+ {[%clk 0:00:32]}  Kb6 {[%clk 0:00:14]} 74. Qc6+ {[%clk 0:00:32]}  Ka5 {[%clk 0:00:15]} 75. Qa6+ {[%clk 0:00:32]}  Kb4 {[%clk 0:00:15]} 76. Be1+ {[%clk 0:00:32]}  Kb3 {[%clk 0:00:16]} 77. b6 {[%clk 0:00:32]}  Kc2 {[%clk 0:00:17]} 78. b7 {[%clk 0:00:33]}  Kd1 {[%clk 0:00:18]} 79. b8=Q {[%clk 0:00:34]}  Kxe1 {[%clk 0:00:19]} 80. Qe8+ {[%clk 0:00:34]}  Kf2 {[%clk 0:00:18]} 81. Kf7 {[%clk 0:00:34]}  Kg2 {[%clk 0:00:19]} 82. Kf8 {[%clk 0:00:35]}  Kg3 {[%clk 0:00:19]} 83. Qf6 {[%clk 0:00:36]}  Kh2 {[%clk 0:00:20]} 84. Qeg6 {[%clk 0:00:37]}  Kh1 {[%clk 0:00:21]} 85. Qh8# {[%clk 0:00:37]} 1-0


[Site "https://www.chess.com"]

[Event "Titled Tuesday Blitz July 4 Early 2023"]
[White "Skliarov, Viktor"]
[Black "Ocelak, Jakub"]
[WhiteFideId "14106736"]
[BlackFideId "23707933"]
[WhiteElo "2609"]
[BlackElo "2443"]
[Result "0-1"]
[Round "6"]
[TimeControl "180+2"]
[Date "2023.07.04"]
[WhiteClock "0:00:02"]
[BlackClock "0:00:03"]
[Board "106"]

1. e4 {[%clk 0:03:00]}  g6 {[%clk 0:02:56]} 2. d4 {[%clk 0:03:00]}  Bg7 {[%clk 0:02:57]} 3. Nc3 {[%clk 0:03:01]}  d6 {[%clk 0:02:57]} 4. Be3 {[%clk 0:03:01]}  a6 {[%clk 0:02:58]} 5. f3 {[%clk 0:03:02]}  b5 {[%clk 0:02:58]} 6. Qd2 {[%clk 0:03:02]}  Bb7 {[%clk 0:02:59]} 7. O-O-O {[%clk 0:03:02]}  Nd7 {[%clk 0:02:59]} 8. g4 {[%clk 0:03:02]}  Rc8 {[%clk 0:02:59]} 9. h4 {[%clk 0:03:02]}  h6 {[%clk 0:02:59]} 10. Kb1 {[%clk 0:03:00]}  c5 {[%clk 0:02:59]} 11. dxc5 {[%clk 0:02:56]}  Nxc5 {[%clk 0:02:59]} 12. Nge2 {[%clk 0:02:56]}  Qa5 {[%clk 0:02:53]} 13. Nd4 {[%clk 0:02:54]}  Nf6 {[%clk 0:02:49]} 14. Be2 {[%clk 0:02:41]}  Nfd7 {[%clk 0:02:45]} 15. Nb3 {[%clk 0:02:34]}  Nxb3 {[%clk 0:02:38]} 16. cxb3 {[%clk 0:02:34]}  h5 {[%clk 0:02:08]} 17. g5 {[%clk 0:02:18]}  O-O {[%clk 0:01:45]} 18. Nd5 {[%clk 0:02:14]}  Qd8 {[%clk 0:01:45]} 19. Bd4 {[%clk 0:02:02]}  Bxd5 {[%clk 0:01:41]} 20. Bxg7 {[%clk 0:01:53]}  Bxe4+ {[%clk 0:01:39]} 21. fxe4 {[%clk 0:01:53]}  Kxg7 {[%clk 0:01:40]} 22. Rc1 {[%clk 0:01:47]}  Qb6 {[%clk 0:01:37]} 23. Rhf1 {[%clk 0:01:40]}  Ne5 {[%clk 0:01:37]} 24. a3 {[%clk 0:01:35]}  Rfd8 {[%clk 0:01:28]} 25. Ka2 {[%clk 0:01:32]}  Rc5 {[%clk 0:01:22]} 26. Rxc5 {[%clk 0:01:26]}  Qxc5 {[%clk 0:01:23]} 27. b4 {[%clk 0:01:22]}  Qb6 {[%clk 0:01:21]} 28. Bd1 {[%clk 0:01:22]}  Rc8 {[%clk 0:01:17]} 29. Bb3 {[%clk 0:01:22]}  Qd8 {[%clk 0:00:34]} 30. Qd4 {[%clk 0:01:18]}  Kg8 {[%clk 0:00:28]} 31. Kb1 {[%clk 0:00:34]}  Qe8 {[%clk 0:00:28]} 32. Qa7 {[%clk 0:00:30]}  Ra8 {[%clk 0:00:24]} 33. Qb7 {[%clk 0:00:27]}  Kg7 {[%clk 0:00:18]} 34. Ka2 {[%clk 0:00:26]}  Kg8 {[%clk 0:00:18]} 35. Kb1 {[%clk 0:00:26]}  Kg7 {[%clk 0:00:15]} 36. Bd5 {[%clk 0:00:22]}  Rb8 {[%clk 0:00:11]} 37. Qxa6 {[%clk 0:00:22]}  Qd8 {[%clk 0:00:07]} 38. Qa7 {[%clk 0:00:20]}  Rc8 {[%clk 0:00:05]} 39. Ka2 {[%clk 0:00:19]}  Rc2 {[%clk 0:00:05]} 40. Qd4 {[%clk 0:00:18]}  Kg8 {[%clk 0:00:04]} 41. Kb1 {[%clk 0:00:16]}  Qc8 {[%clk 0:00:04]} 42. Qd1 {[%clk 0:00:06]}  Rc7 {[%clk 0:00:03]} 43. Bb3 {[%clk 0:00:05]}  Qg4 {[%clk 0:00:02]} 44. Qxg4 {[%clk 0:00:04]}  hxg4 {[%clk 0:00:03]} 45. a4 {[%clk 0:00:03]}  bxa4 {[%clk 0:00:03]} 46. Bxa4 {[%clk 0:00:04]}  Rb7 {[%clk 0:00:04]} 47. b5 {[%clk 0:00:04]}  Nd7 {[%clk 0:00:03]} 48. Kc2 {[%clk 0:00:02]}  Nc5 {[%clk 0:00:03]} 49. b3 {[%clk 0:00:03]}  Ra7 {[%clk 0:00:02]} 50. Rf4 {[%clk 0:00:03]}  e6 {[%clk 0:00:02]} 51. Rxg4 {[%clk 0:00:02]}  Nxa4 {[%clk 0:00:02]} 52. bxa4 {[%clk 0:00:03]}  Rxa4 {[%clk 0:00:03]} 53. Kb3 {[%clk 0:00:02]}  Ra1 {[%clk 0:00:03]} 54. Kb4 {[%clk 0:00:02]}  Kf8 {[%clk 0:00:02]} 55. b6 {[%clk 0:00:02]}  Ke7 {[%clk 0:00:03]} 56. Kb5 {[%clk 0:00:03]}  Kd7 {[%clk 0:00:03]} 57. Rf4 {[%clk 0:00:03]}  Rb1+ {[%clk 0:00:03]} 58. Ka6 {[%clk 0:00:04]}  Kc6 {[%clk 0:00:02]} 59. Ka7 {[%clk 0:00:03]}  Rxb6 {[%clk 0:00:02]} 60. Rxf7 {[%clk 0:00:03]}  Rb4 {[%clk 0:00:02]} 61. Rf6 {[%clk 0:00:02]}  Kc7 {[%clk 0:00:03]} 62. Rxe6 {[%clk 0:00:02]}  Ra4# {[%clk 0:00:03]} 0-1


[Site "https://www.chess.com"]